[Event "44th Chess Olympiad Open 2022"]
[Site "Chennai"]
[Date "2022.07.30"]
[Round "2.28"]
[White "Fier, Alexandr"]
[Black "Guzman, Christopher"]
[Result "1-0"]
[WhiteElo "2567"]
[BlackElo "2243"]
[Annotator "TA"]
[PlyCount "99"]
[EventDate "2022.??.??"]
[TimeControl "60"]

{[%evp 11,99,27,30,29,28,19,27,39,37,24,39,22,28,20,23,23,13,14,23,0,0,0,0,0,6,
-17,33,30,23,19,32,22,24,14,14,11,37,8,26,27,51,49,48,46,55,51,66,24,175,175,
284,266,263,261,275,241,257,187,406,389,483,470,472,425,444,434,458,458,495,
487,481,473,477,337,450,204,485,443,629,604,29988,29988,29989,29990,29990,5052,
29991,29992,29993,29994]} 1. e4 {[%emt 0:00:03]} c6 {[%emt 0:01:58]} 2. d4 {
[%emt 0:00:05]} d5 {[%emt 0:00:07]} 3. e5 {[%emt 0:00:02]} Bf5 {[%emt 0:02:12]}
4. Nf3 {[%emt 0:00:06]} e6 {[%emt 0:01:22]} 5. Be2 {[%emt 0:00:05]} h6 {
[%emt 0:03:21]} 6. O-O {[%emt 0:00:10]} Ne7 {[%emt 0:00:25][%cal Yg8e7,Ye7c6,
Yc6a5,Ya5c4]} 7. Nbd2 {[%emt 0:00:05] B12: Caro-Kann: Advance Variation.} Nd7 {
[%emt 0:00:12]} 8. c3 {[%emt 0:01:10]} c5 {[%emt 0:08:01]} 9. dxc5 {[%emt 0:02:
17] White has an edge.} Nxc5 {[%emt 0:05:37]} 10. Nb3 $5 {[%emt 0:00:29]
Leaves trodden paths.} Nc6 {[%emt 0:05:35]} 11. Nfd4 {[%emt 0:03:50]} Bh7 {
[%emt 0:09:28] [#]} 12. f4 $146 {[%emt 0:01:59]} ({Predecessor:} 12. Be3 Nxb3
13. axb3 Nxe5 14. Bb5+ Nd7 15. Qh5 Bg6 16. Qe5 Qb8 17. Qxb8+ Rxb8 18. Rxa7 {
½-½ (49) Morozevich,A (2760)-Mamedyarov,S (2753) Moscow 2013}) 12... Nxb3 {
[%emt 0:05:17]} 13. Nxb3 {[%emt 0:08:45]} Be7 {[%emt 0:00:53]} 14. Be3 {
[%emt 0:00:04]} O-O {[%emt 0:00:10]} 15. a4 {[%emt 0:00:00]} Na5 {[%emt 0:03:
07]} 16. Nd4 {[%emt 0:08:05]} Nc4 {[%emt 0:00:55]} 17. Bc1 {[%emt 0:02:08]} Rc8
{[%emt 0:00:26]} 18. Kh1 {[%emt 0:05:04]} Qb6 {[%emt 0:02:55]} ({Black should
try} 18... Bc5 $11) 19. b3 {[%emt 0:00:23]} Na5 {[%emt 0:00:07]} 20. b4 {
[%emt 0:00:03]} Nc4 {[%emt 0:01:21]} 21. a5 {[%emt 0:00:00]} Qc7 {[%emt 0:00:
16]} 22. Qe1 {[%emt 0:00:15]} Kh8 {[%emt 0:01:38]} 23. Qg3 {[%emt 0:00:58]} Qd7
{[%emt 0:03:31]} 24. Qh3 {[%emt 0:00:38]} Rce8 {[%emt 0:01:49]} 25. Bd1 {
[%emt 0:02:11]} Qc8 {[%emt 0:03:06]} 26. Ba4 {[%emt 0:00:00]} Rd8 {[%emt 0:00:
05]} 27. Ra2 {[%emt 0:00:03]} Be4 {[%emt 0:18:36]} 28. f5 {[%emt 0:06:59]} Nxe5
{[%emt 0:04:00] Strongly threatening ...Qc4.} 29. Bxh6 {[%emt 0:12:41]} Kg8 $2
{[%emt 0:03:57] [#] This costs Black the game.} (29... gxh6 $11 {and Black has
nothing to worry.} 30. f6 (30. Qxh6+ Kg8 $11) 30... Bxf6 31. Rxf6 (31. Qxh6+
Kg8 $11) 31... Kg8) 30. Qg3 $1 $40 {[%emt 0:05:38][%csl Gh6][%cal Rg3g7] White
wants a kill.} Bf6 {[%emt 0:01:10]} (30... Ng6 {was called for.}) 31. fxe6 {
[%emt 0:00:07]} Ng6 {[%emt 0:00:13]} 32. Rxf6 {[%emt 0:00:16] Really sharp!}
fxe6 {[%emt 0:01:13] [#]} 33. Rxf8+ {[%emt 0:04:32]} Rxf8 {[%emt 0:00:02][%cal
Rf8f1]} 34. h4 {[%emt 0:00:08]} Rf1+ $2 {[%emt 0:03:00]} (34... gxh6 35. h5 e5)
35. Kh2 {[%emt 0:00:06][%cal Ya2e2] Hoping for Re2!} e5 {[%emt 0:00:04] [#]}
36. Bc2 $1 {[%emt 0:07:34] Bxe4 is the strong threat.} exd4 {[%emt 0:07:32]}
37. Bxe4 {[%emt 0:00:03]} dxe4 {[%emt 0:00:19]} 38. Qxg6 {[%emt 0:00:19][%csl
Gh6][%cal Rg6g7]} Qc7+ {[%emt 0:00:00]} 39. g3 {[%emt 0:00:03]} dxc3 {[%emt 0:
03:23]} 40. Bf4 {[%emt 0:02:16]} Qc4 {[%emt 0:00:00]} 41. Qe8+ {[%emt 0:30:04]}
Kh7 {[%emt 0:28:05]} 42. Qh5+ {[%emt 0:00:02]} Kg8 {[%emt 0:00:27]} 43. Rc2 {
[%emt 0:07:01]} (43. Re2 $142) 43... Rb1 $2 {[%emt 0:00:00]} (43... Re1 44. Rf2
Qd4) 44. Qe5 {[%emt 0:07:00]} Rb3 {[%emt 0:00:00]} (44... Rxb4 $142 45. Qe8+
Kh7) 45. h5 {[%emt 0:00:00] White wants to mate with Qe8+.} Rxb4 {[%emt 0:00:
00]} 46. Qe8+ {[%emt 0:00:00]} Kh7 {[%emt 0:00:00]} 47. Be5 {[%emt 0:00:00]}
Qc6 {[%emt 0:00:00]} 48. Qf8 {[%emt 0:00:00]} (48. Qf7 $142 Qh6 49. Qf5+ Kh8
50. Rxc3 Rc4 51. Rxc4 Qd2+ 52. Kh3 Qd8 53. Rc8) 48... Qh6 {[%emt 0:00:00]} 49.
Qf5+ {[%emt 0:00:00]} Kg8 {[%emt 0:00:00]} 50. Rxc3 {[%emt 0:00:00] Weighted
Error Value: White=0.13 (very precise) /Black=0.62} 1-0

[Event "44th Chess Olympiad Open 2022"]
[Site "Chennai"]
[Date "2022.07.30"]
[Round "2.28"]
[White "Diamant, Andre"]
[Black "Camacho Campusano, David Daniel"]
[Result "1/2-1/2"]
[WhiteElo "2538"]
[BlackElo "2221"]
[Annotator "ChessBase"]
[PlyCount "77"]
[EventDate "2022.??.??"]
[TimeControl "60"]

1. c4 {[%emt 0:00:05]} Nf6 {[%emt 0:00:15]} 2. Nc3 {[%emt 0:00:08]} c5 {
[%emt 0:01:53]} 3. Nf3 {[%emt 0:00:42]} Nc6 {[%emt 0:01:10]} 4. d4 {[%emt 0:00:
00]} cxd4 {[%emt 0:01:58]} 5. Nxd4 {[%emt 0:00:10]} e6 {[%emt 0:00:44]} 6. a3 {
[%emt 0:00:50]} d5 {[%emt 0:08:09]} 7. cxd5 {[%emt 0:00:58]} Nxd4 {[%emt 0:00:
00]} 8. Qxd4 {[%emt 0:00:13]} Nxd5 {[%emt 0:00:23]} 9. Nxd5 {[%emt 0:03:58]}
Qxd5 {[%emt 0:01:11]} 10. Qxd5 {[%emt 0:01:31]} exd5 {[%emt 0:00:59]} 11. Be3 {
[%emt 0:01:23]} Bd6 {[%emt 0:06:59]} 12. g3 {[%emt 0:17:09]} Be5 {[%emt 0:00:
00]} 13. O-O-O {[%emt 0:02:59]} Bf5 {[%emt 0:03:28]} 14. Rxd5 {[%emt 0:08:48]}
Rc8+ {[%emt 0:01:19]} 15. Kd2 {[%emt 0:10:47]} f6 {[%emt 0:03:52]} 16. Bg2 {
[%emt 0:03:20]} Rc2+ {[%emt 0:05:17]} 17. Kd1 {[%emt 0:00:43]} Rxb2 {[%emt 0:
00:00]} 18. f4 {[%emt 0:01:53]} Rb1+ {[%emt 0:00:51]} 19. Kd2 {[%emt 0:07:40]}
Rb2+ {[%emt 0:00:58]} 20. Kd1 {[%emt 0:20:13]} Rb1+ {[%emt 0:00:51]} 21. Bc1 {
[%emt 0:01:59]} Bb2 {[%emt 0:01:17]} 22. Kd2 {[%emt 0:03:18]} Be6 {[%emt 0:00:
00]} 23. Rc5 {[%emt 0:03:10]} O-O {[%emt 0:01:48]} 24. Rc7 {[%emt 0:08:08]}
Rd8+ {[%emt 0:00:31]} 25. Kc2 {[%emt 0:00:47]} Rxc1+ {[%emt 0:01:31]} 26. Rxc1
{[%emt 0:00:03]} Bxc1 {[%emt 0:00:21]} 27. Kxc1 {[%emt 0:00:23]} Rc8 {[%emt 0:
00:00]} 28. Rxc8+ {[%emt 0:01:00]} Bxc8 {[%emt 0:00:02]} 29. Kc2 {[%emt 0:00:
00]} Kf7 {[%emt 0:01:44]} 30. Kc3 {[%emt 0:00:10]} Ke7 {[%emt 0:00:12]} 31. Kd4
{[%emt 0:00:09]} Kd6 {[%emt 0:01:07]} 32. e4 {[%emt 0:00:51]} b6 {[%emt 0:00:
00]} 33. e5+ {[%emt 0:00:44]} fxe5+ {[%emt 0:00:03]} 34. fxe5+ {[%emt 0:00:09]}
Ke7 {[%emt 0:00:38]} 35. Bf1 {[%emt 0:00:40]} h6 {[%emt 0:02:28]} 36. Bb5 {
[%emt 0:00:53]} Be6 {[%emt 0:01:58]} 37. Ba6 {[%emt 0:00:25]} Bh3 {[%emt 0:00:
00]} 38. Bb5 {[%emt 0:00:34]} Be6 {[%emt 0:00:30]} 39. Ba6 {[%emt 0:00:24]}
1/2-1/2

[Event "44th Chess Olympiad Open 2022"]
[Site "Chennai"]
[Date "2022.07.30"]
[Round "2.28"]
[White "Munoz Santana, Jose Lisandro"]
[Black "Supi, Luis Paulo"]
[Result "0-1"]
[WhiteElo "2423"]
[BlackElo "2603"]
[Annotator "TA"]
[PlyCount "46"]
[EventDate "2022.??.??"]
[TimeControl "60"]

{[%evp 14,46,0,0,0,0,0,0,0,0,2,-2,5,9,31,43,38,36,70,77,77,-50,-61,-179,-168,
-174,-158,-159,-161,-169,-132,-640,-644,-616,-587]} 1. Nf3 {[%emt 0:00:03]} d5
{[%emt 0:00:33]} 2. e3 {[%emt 0:00:22]} Nf6 {[%emt 0:00:45]} 3. c4 {[%emt 0:00:
00]} e6 {[%emt 0:00:56]} 4. b3 {[%emt 0:00:12]} Bd6 {[%emt 0:01:51]} 5. Bb2 {
[%emt 0:00:11]} O-O {[%emt 0:00:24]} 6. Nc3 {[%emt 0:00:10]} c6 {[%emt 0:01:28]
6...c6 has lost popularity.} 7. d4 {[%emt 0:07:00]} Nbd7 {[%emt 0:00:11]} 8.
Be2 {[%emt 0:09:13]} b6 {[%emt 0:00:44] D45: Semi-Slav: 5 e3.} 9. O-O {[%emt 0:
00:00]} Bb7 {[%emt 0:00:06]} 10. Bd3 {[%emt 0:10:02]} Re8 {[%emt 0:06:10] The
position is equal.} 11. e4 {[%emt 0:04:14]} dxc4 {[%emt 0:08:12] [#]} 12. Bxc4
$146 {[%emt 0:28:17] [#] Threatens to win with e5.} ({Predecessor:} 12. bxc4 e5
13. d5 a6 14. a4 Nc5 15. Bc2 Qc7 16. Qe2 Rad8 17. Rfd1 Bc8 18. Nd2 {½-½ (30)
Nagy,G (2507)-Nguyen,T (2623) Germany 2022}) 12... e5 {[%emt 0:05:09]} 13. Ng5
{[%emt 0:07:41]} Rf8 {[%emt 0:25:08]} 14. f4 {[%emt 0:12:13]} exd4 {[%emt 0:00:
00]} 15. Ne2 {[%emt 0:00:32]} c5 {[%emt 0:00:55]} 16. e5 {[%emt 0:00:56]} Bxe5
{[%emt 0:00:34] Hoping for ...Bd6.} 17. fxe5 {[%emt 0:02:23]} (17. Nxf7 $16
Rxf7 18. Bxf7+ Kxf7 19. fxe5 Nxe5 20. Nxd4) 17... Nxe5 $15 {[%emt 0:00:14]} 18.
h3 {[%emt 0:06:54] [#]} (18. Ng3 $15) 18... h6 $1 $36 {[%emt 0:03:34] Keeping
White busy.} 19. Nf3 {[%emt 0:00:02]} Bxf3 {[%emt 0:06:32]} 20. gxf3 {[%emt 0:
00:02]} Qd7 {[%emt 0:01:15]} 21. Nf4 {[%emt 0:03:06]} Rfe8 {[%emt 0:05:05]} 22.
Kh2 $2 {[%emt 0:05:38]} (22. a4 $17) 22... Nxc4 {[%emt 0:01:27]} 23. bxc4 {
[%emt 0:00:03]} Qd6 {[%emt 0:00:09] Weighted Error Value: White=0.83/Black=0.
07 (flawless)} 0-1

[Event "44th Chess Olympiad Open 2022"]
[Site "Chennai"]
[Date "2022.07.30"]
[Round "2.28"]
[White "Arvelo Leo, Gian Carlo"]
[Black "Mekhitarian, Krikor Sevag"]
[Result "0-1"]
[WhiteElo "2176"]
[BlackElo "2542"]
[Annotator "TA"]
[PlyCount "100"]
[EventDate "2022.??.??"]
[TimeControl "60"]

{[%evp 9,100,0,0,0,0,0,0,0,0,0,-1,13,0,-3,-16,-14,8,0,17,0,0,-56,-33,-45,-29,
-71,-45,-48,0,0,0,-14,-4,-104,-96,-149,-30,-20,-42,-430,-414,-414,-129,-175,
-141,-134,-147,-157,-134,-141,-104,-97,-100,-90,-95,-189,-185,-187,-166,-163,
-170,-154,-156,-191,-182,-222,-209,-234,-184,-184,-144,-186,-181,-239,-243,
-273,-270,-275,-260,-326,-314,-577,-594,-29965,-29963,-5093,-6119,-29995,
-29996,-29996,-29993,-29996,-29997]} 1. d4 {[%emt 0:00:07]} Nf6 {[%emt 0:00:01]
} 2. Bg5 {[%emt 0:02:35]} d5 {[%emt 0:00:09]} 3. Bxf6 {[%emt 0:00:14]} gxf6 {
[%emt 0:00:14]} 4. c4 {[%emt 0:00:36]} dxc4 {[%emt 0:07:32]} 5. e3 {[%emt 0:00:
00]} c5 {[%emt 0:05:25]} 6. Bxc4 {[%emt 0:04:36] D00:1 d4 d5: Unusual lines.}
cxd4 {[%emt 0:00:43]} 7. exd4 {[%emt 0:00:13]} (7. Qh5 e6 8. Nd2 dxe3 9. fxe3
Qb6 $17) 7... Bg7 {[%emt 0:00:47]} 8. Ne2 {[%emt 0:03:43] The position is
equal.} O-O {[%emt 0:00:04]} 9. Nbc3 {[%emt 0:00:41]} Nc6 {[%emt 0:02:43]} 10.
O-O {[%emt 0:01:22]} f5 {[%emt 0:00:16][%cal Rc6d4] The old main line.} 11. d5
{[%emt 0:01:02]} Ne5 {[%emt 0:00:02]} 12. Bb3 {[%emt 0:00:11]} a6 {[%emt 0:00:
00]} 13. Re1 {[%emt 0:09:28]} Qd6 {[%emt 0:02:02] [#]} 14. Nd4 $146 {[%emt 0:
00:00]} (14. Ng3 {is more complex.} f4 15. Nge4 Qg6 16. f3) ({Predecessor:} 14.
h3 b5 15. Ng3 Qh6 16. Bc2 f4 17. Qh5 fxg3 18. Qxh6 gxf2+ 19. Kxf2 Bxh6 20. Rxe5
{½-½ (31) Nurmi,R (1784)-Murillo Subia,A (1760) ICCF email 2016}) 14... Bd7 {
[%emt 0:26:23]} 15. Nf3 {[%emt 0:10:05]} ({White should try} 15. Qh5 $11) 15...
Ng6 {[%emt 0:02:50]} 16. h4 {[%emt 0:39:05]} Rac8 {[%emt 0:09:58]} 17. Qd2 {
[%emt 0:03:58]} Rfe8 {[%emt 0:05:21]} (17... Ne5 $5 {[%cal Re5f3]} 18. Nxe5
Bxe5 $17) 18. Rad1 {[%emt 0:01:43]} Bf6 {[%emt 0:10:47]} (18... b5 $15 {
is superior.}) 19. Qh6 $11 {[%emt 0:07:44]} Bg7 {[%emt 0:03:16]} ({But not} 
19... Bxc3 20. bxc3 f6 21. Bc2 $14) 20. Qg5 {[%emt 0:01:39]} Qf6 {[%emt 0:00:
00]} 21. Qd2 {[%emt 0:05:45]} (21. Qxf6 $11 {remains equal.} Bxf6 22. h5) 21...
Nxh4 $17 {[%emt 0:01:28]} 22. Ne5 {[%emt 0:00:10] [#]} (22. Nxh4 $142 Qxh4 23.
a3) 22... Rcd8 {[%emt 0:00:25]} (22... f4 $1 $17 {[%cal Yf6g5] White must now
prevent ...Qg5!} 23. d6 {[#]} (23. Nxd7 $2 Qg5 $19) 23... e6 $1) 23. d6 $11 {
[%emt 0:00:29]} e6 $40 {[%emt 0:00:05] Black mounts an attack.} 24. Nxd7 $4 {
[%emt 0:00:56]} (24. f4 $1 $15) 24... Qg6 $19 {[%emt 0:00:00][%csl Gh4][%cal
Rg6g2]} 25. Bd5 {[%emt 0:00:49]} Rxd7 $2 {[%emt 0:00:13]} (25... exd5 $19 {
[%csl Gh4][%cal Rg6g2]} 26. Rxe8+ Rxe8 27. Qxd5 Qg4) 26. Qf4 {[%emt 0:00:38]} (
26. g3 $17 {was necessary.}) 26... Qg4 {[%emt 0:00:54]} 27. Qxg4 {[%emt 0:00:
38]} fxg4 {[%emt 0:00:01]} 28. Ne4 {[%emt 0:00:41]} Red8 {[%emt 0:00:58]} 29.
Bb3 {[%emt 0:00:25]} Nf5 {[%emt 0:00:24]} 30. Nc5 {[%emt 0:00:00]} Rxd6 {
[%emt 0:00:18]} 31. Nxb7 {[%emt 0:00:32]} Rxd1 {[%emt 0:00:00]} 32. Bxd1 {
[%emt 0:00:07]} (32. Rxd1 $17 {is a better defense.} Rc8 33. Rd8+ Rxd8 34. Nxd8
) 32... Rb8 {[%emt 0:00:21]} 33. Nc5 {[%emt 0:00:27]} g3 {[%emt 0:00:00]} 34.
Nb3 {[%emt 0:00:57]} gxf2+ {[%emt 0:01:19]} 35. Kxf2 {[%emt 0:00:00]} Bxb2 {
[%emt 0:00:07]} 36. g4 {[%emt 0:00:41]} Ne7 {[%emt 0:00:28]} 37. Kf3 {[%emt 0:
00:31]} Nd5 {[%emt 0:00:39]} 38. Nc5 {[%emt 0:00:31]} a5 {[%emt 0:00:00]} 39.
Bb3 {[%emt 0:00:26]} Nb6 {[%emt 0:00:59]} 40. Re2 {[%emt 0:00:42]} Bd4 {
[%emt 0:00:24]} 41. Na4 {[%emt 0:00:31]} (41. Nd3 $142) 41... Nd7 {[%emt 0:00:
00]} 42. Rc2 {[%emt 0:08:01]} Rb4 {[%emt 0:01:51]} 43. Rc8+ {[%emt 0:01:39]}
Kg7 {[%emt 0:00:03]} 44. Ra8 {[%emt 0:00:17]} Ne5+ {[%emt 0:00:31]} 45. Kg3 $2
{[%emt 0:00:16]} (45. Ke2 {keeps fighting.}) 45... Be3 {[%emt 0:01:01]} 46.
Rxa5 {[%emt 0:04:20]} Rxg4+ {[%emt 0:00:33]} 47. Kh3 {[%emt 0:00:24]} Bf4 {
[%emt 0:00:51] ( -> ...Rg3+)} 48. Nb6 {[%emt 0:04:06]} Rg3+ {[%emt 0:00:11]
Black mates.} 49. Kh4 {[%emt 0:00:14]} Ng6+ {[%emt 0:01:05]} 50. Kh5 {[%emt 0:
00:00]} e5 {[%emt 0:00:20] Weighted Error Value: White=0.73/Black=0.19 (very
precise)} 0-1

[Event "44th Chess Olympiad Open 2022"]
[Site "Chennai"]
[Date "2022.07.30"]
[Round "2.29"]
[White "Smirnov, Anton"]
[Black "Msellek, Ilyass"]
[Result "1/2-1/2"]
[WhiteElo "2600"]
[BlackElo "2398"]
[Annotator "TA"]
[PlyCount "63"]
[EventDate "2022.??.??"]
[TimeControl "60"]

{[%evp 19,63,43,62,63,93,81,82,27,79,8,13,-28,-24,-22,0,0,0,0,-4,-24,-21,-21,
-5,-20,-12,-16,-16,-13,-13,-16,0,-15,-12,-16,-15,-14,0,-6,0,-20,0,0,0,-38,-36,
-87]} 1. e4 {[%emt 0:01:32]} d6 {[%emt 0:00:13]} 2. d4 {[%emt 0:00:08]} Nf6 {
[%emt 0:00:06]} 3. Nc3 {[%emt 0:00:04]} e5 {[%emt 0:00:05]} 4. Nf3 {[%emt 0:00:
00]} Nbd7 {[%emt 0:00:16]} 5. Bc4 {[%emt 0:00:07]} Be7 {[%emt 0:00:18]} 6. O-O
{[%emt 0:00:11]} O-O {[%emt 0:00:10]} 7. Re1 {[%emt 0:00:05]} c6 {[%emt 0:00:
00]} 8. a4 {[%emt 0:00:05]} b6 {[%emt 0:00:12]} 9. Ba2 {[%emt 0:03:12]} a6 {
[%emt 0:01:11]} 10. h3 {[%emt 0:17:07]} Bb7 {[%emt 0:00:58]} 11. Nh4 {[%emt 0:
00:00] 11.Be3 is setting a new trend. C41: Philidor Defence.} b5 {[%emt 0:00:
00]} 12. Nf5 {[%emt 0:07:47]} b4 {[%emt 0:12:45]} 13. Nb1 {[%emt 0:00:37]
White is much more active. The black rooks are badly placed.} (13. Ne2 $16)
13... c5 {[%emt 0:01:18]} (13... exd4 $11 {keeps the balance.} 14. Qxd4 c5) 14.
dxe5 {[%emt 0:02:35]} (14. d5 $16) 14... Nxe5 $11 {[%emt 0:01:56]} 15. f4 {
[%emt 0:07:54][%cal Yf2f4,Yf4f5]} Ng6 {[%emt 0:01:31] [#]} 16. Nxe7+ $146 {
[%emt 0:07:42]} ({Predecessor:} 16. Nd2 Re8 17. c3 Bf8 18. Bb1 Qd7 19. cxb4
cxb4 20. Ng3 Nxf4 21. Nc4 d5 22. Bxf4 dxc4 {0-1 (37) Buiza Prieto,E (2110)
-Trigo Urquijo,S (2381) Zornotza 2016}) 16... Qxe7 {[%emt 0:02:53]} 17. f5 $1 {
[%emt 0:00:06]} Ne5 {[%emt 0:01:04] Pair of Knights!} 18. Bg5 $1 {[%emt 0:00:
00]} Rac8 {[%emt 0:15:45]} 19. Nd2 {[%emt 0:00:36][%cal Ya2d5]} c4 {[%emt 0:00:
00]} 20. Qe2 {[%emt 0:03:22][%cal Rd2c4]} a5 {[%emt 0:02:16]} 21. Bxc4 {
[%emt 0:06:41]} Nxc4 {[%emt 0:01:30]} 22. Nxc4 {[%emt 0:00:00]} Ba6 {[%emt 0:
00:00]} 23. b3 {[%emt 0:00:07]} Bxc4 {[%emt 0:05:04]} 24. bxc4 {[%emt 0:00:02]}
Rfe8 {[%emt 0:00:12]} 25. Qd3 {[%emt 0:06:07]} h6 {[%emt 0:02:33]} 26. Bxf6 {
[%emt 0:06:51]} Qxf6 {[%emt 0:00:05]} 27. Rad1 {[%emt 0:00:12]} Qh4 {[%emt 0:
00:00] Black has compensation.} 28. Qe2 {[%emt 0:04:34]} (28. Qxd6 Rxe4 29.
Rxe4 Qxe4 $15) 28... Qf6 {[%emt 0:03:12]} 29. Qd3 {[%emt 0:06:39]} Qh4 {
[%emt 0:00:00]} 30. Re3 {[%emt 0:03:25]} ({Reject} 30. Qxd6 Rxe4 31. Rxe4 Qxe4
$15) 30... Qf4 {[%emt 0:00:01][%cal Yd6d5]} 31. Qe2 {[%emt 0:01:09]} Rc5 {
[%emt 0:01:30]} 32. Qf3 {[%emt 0:03:08] Weighted Error Value: White=0.13 (very
precise) /Black=0.10 (very precise)} (32. Kh1 $15) 1/2-1/2

[Event "44th Chess Olympiad Open 2022"]
[Site "Chennai"]
[Date "2022.07.30"]
[Round "2.29"]
[White "Tan, Justin"]
[Black "Choukri, Adel"]
[Result "1-0"]
[WhiteElo "2508"]
[BlackElo "2306"]
[Annotator "TA"]
[PlyCount "57"]
[EventDate "2022.??.??"]
[TimeControl "60"]

{[%evp 13,57,38,38,35,39,26,30,8,37,31,84,84,87,66,93,98,104,111,134,140,124,
145,210,223,207,215,243,252,263,254,257,247,241,223,237,164,162,167,857,836,
1156,1148,5089,1145,4702,1267]} 1. e4 {[%emt 0:00:02]} c5 {[%emt 0:00:07]} 2.
Nf3 {[%emt 0:00:06]} Nc6 {[%emt 0:00:05]} 3. Bb5 {[%emt 0:00:07]} g6 {[%emt 0:
00:00]} 4. O-O {[%emt 0:00:09]} Bg7 {[%emt 0:00:05]} 5. Bxc6 {[%emt 0:00:24]}
bxc6 {[%emt 0:00:17]} 6. Re1 {[%emt 0:00:44]} Nf6 {[%emt 0:05:05]} 7. e5 {
[%emt 0:00:12]} Nd5 {[%emt 0:00:02]} 8. c4 {[%emt 0:01:04] B31: Sicilian: 2...
Nc6 3 Bb5 g6.} Nb6 {[%emt 0:02:05]} 9. d3 {[%emt 0:01:19]} O-O {[%emt 0:00:26]}
10. Nc3 {[%emt 0:01:34] White has an edge.} d6 {[%emt 0:07:17]} 11. h3 {
[%emt 0:05:22] [#]} dxe5 $146 {[%emt 0:14:32]} (11... Bf5 $14) ({Predecessor:} 
11... d5 12. b3 e6 13. Ba3 Nd7 14. Qc1 f6 15. exf6 Qxf6 16. Bb2 Qf7 17. Na4
Bxb2 18. Qxb2 Rb8 19. Ng5 dxc4 20. Nxf7 {1-0 (20) Sigillo,C (1732)-Satter,M 
(1837) Arco 2015}) 12. Nxe5 $16 {[%emt 0:05:04] White leaves nothing to chance
now.} Bf5 {[%emt 0:00:42]} 13. Qe2 {[%emt 0:25:35] White is more active.} Qd6 {
[%emt 0:18:03]} 14. g4 {[%emt 0:07:48]} Bxe5 {[%emt 0:04:08]} 15. Qxe5 {
[%emt 0:00:36]} Qxe5 {[%emt 0:07:44]} 16. Rxe5 {[%emt 0:01:15]} Bxd3 {[%emt 0:
00:00]} 17. b3 {[%emt 0:00:40]} a5 {[%emt 0:06:15]} (17... Rfe8 $16 {is a
better defense.} 18. Rxc5 Rac8) 18. Bh6 $18 {[%emt 0:08:04]} ({Weaker is} 18.
Rxe7 a4 $14) ({Don't play} 18. Rxc5 $6 Rfc8 $16) 18... Rfd8 {[%emt 0:07:51]}
19. Rxe7 {[%emt 0:00:49]} ({Resist} 19. Rxc5 Rdc8) 19... a4 {[%emt 0:01:46]}
20. Rae1 {[%emt 0:00:10][%cal Ya1e1,Ye1e4,Ye4f4,Yf4f7,Yf7f6]} axb3 {[%emt 0:00:
18]} 21. axb3 {[%emt 0:00:05]} Bc2 {[%emt 0:01:41]} 22. Ne4 {[%emt 0:01:15]}
Bxe4 {[%emt 0:02:01]} 23. R1xe4 {[%emt 0:00:13]} Nd7 {[%emt 0:00:00]} 24. g5 {
[%emt 0:15:17] Against Nf6} Nf8 {[%emt 0:08:16]} 25. Rf4 {[%emt 0:01:19]} Rd3
$2 {[%emt 0:00:17]} (25... Ne6 26. Rfxf7 Ra3) 26. Rfxf7 {[%emt 0:02:09]
Intending Bxf8 and mate. White is clearly winning.} Rxh3 {[%emt 0:01:39]} 27.
Rf6 {[%emt 0:01:36] White threatens Rg7+ and mate.} Rxb3 {[%emt 0:00:52] [#]}
28. Rg7+ $1 {[%emt 0:00:01]} Kh8 {[%emt 0:00:09]} 29. Rgf7 {[%emt 0:00:06]
Weighted Error Value: White=0.08 (flawless) /Black=0.19 (very precise)} 1-0

[Event "44th Chess Olympiad Open 2022"]
[Site "Chennai"]
[Date "2022.07.30"]
[Round "2.29"]
[White "Tissir, Mohamed"]
[Black "Cheng, Bobby"]
[Result "0-1"]
[WhiteElo "2366"]
[BlackElo "2540"]
[Annotator "ChessBase"]
[PlyCount "62"]
[EventDate "2022.??.??"]
[TimeControl "60"]

1. e4 {[%emt 0:00:04]} c5 {[%emt 0:00:07]} 2. Nf3 {[%emt 0:01:29]} d6 {[%emt 0:
00:00]} 3. d4 {[%emt 0:00:59]} cxd4 {[%emt 0:00:06]} 4. Nxd4 {[%emt 0:00:04]}
Nf6 {[%emt 0:00:05]} 5. Nc3 {[%emt 0:00:04]} a6 {[%emt 0:13:17]} 6. f4 {
[%emt 0:13:14]} e5 {[%emt 0:00:00]} 7. Nf3 {[%emt 0:00:10]} Nbd7 {[%emt 0:00:
00]} 8. a4 {[%emt 0:00:02]} Qc7 {[%emt 0:00:00]} 9. Bd3 {[%emt 0:00:09]} Be7 {
[%emt 0:00:00]} 10. O-O {[%emt 0:00:25]} O-O {[%emt 0:00:00]} 11. Kh1 {[%emt 0:
00:00]} Nc5 {[%emt 0:00:00]} 12. Qe1 {[%emt 0:04:25]} Re8 {[%emt 0:08:33]} 13.
fxe5 {[%emt 0:05:47]} dxe5 {[%emt 0:00:14]} 14. Qg3 {[%emt 0:00:06]} Be6 {
[%emt 0:06:53]} 15. Ng5 {[%emt 0:19:03]} Nxd3 {[%emt 0:03:26]} 16. Nxe6 {
[%emt 0:01:46]} fxe6 {[%emt 0:00:09]} 17. cxd3 {[%emt 0:00:19]} Rf8 {[%emt 0:
00:00]} 18. Bg5 {[%emt 0:23:17]} Nh5 {[%emt 0:05:12]} 19. Qg4 {[%emt 0:05:29]}
Bxg5 {[%emt 0:00:09]} 20. Qxg5 {[%emt 0:05:32]} Nf4 {[%emt 0:01:13]} 21. Qg4 {
[%emt 0:03:57]} Qb6 {[%emt 0:02:26]} 22. a5 {[%emt 0:05:31]} Qxb2 {[%emt 0:00:
00]} 23. Na4 {[%emt 0:00:53]} Qd4 {[%emt 0:00:23]} 24. Nb6 {[%emt 0:01:34]}
Rae8 {[%emt 0:02:03]} 25. h3 {[%emt 0:04:03]} Rf6 {[%emt 0:09:16]} 26. Ra2 {
[%emt 0:00:58]} Qxd3 {[%emt 0:02:00]} 27. Raf2 {[%emt 0:00:46]} Qxe4 {[%emt 0:
00:00]} 28. Nd7 {[%emt 0:00:19]} Rf5 {[%emt 0:01:10]} 29. Nxe5 {[%emt 0:00:44]}
h5 {[%emt 0:03:00]} 30. Qg3 {[%emt 0:00:30]} Qxe5 {[%emt 0:01:50]} 31. Rxf4 {
[%emt 0:00:05]} g5 {[%emt 0:00:37]} 0-1